bitfinex/quotes_BTCUSD_20240905
["timestamp","ask_amount","ask_price","bid_price","bid_amount"]
[1725544709354,0.175997,57083.0,57082.0,0.014]
[1725544709608,0.526364,57083.0,57082.0,0.014]
[1725544709832,0.350347,57087.0,57082.0,0.014]
[1725544710049,0.35035,57086.0,57082.0,0.014]
[1725544710271,0.175182,57084.0,57082.0,0.014]
[1725544710518,0.350348,57087.0,57082.0,0.014]
[1725544710738,0.135,57097.0,57078.0,0.30851005]
[1725544710953,0.350312,57092.0,57085.0,0.175174]
[1725544711169,0.350312,57092.0,57083.0,0.350364]
[1725544711170,0.175162,57090.0,57086.0,0.175174]
[1725544712964,0.175156,57092.0,57088.0,0.175167]
[1725544713195,0.175156,57092.0,57087.0,0.525504]
[1725544713430,0.350302,57094.0,57087.0,0.350338]
[1725544713431,0.17515,57094.0,57087.0,0.350338]
[1725544713650,0.17515,57094.0,57091.0,0.1657]
[1725544713873,0.00021144,57096.0,57095.0,0.525439]
[1725544714108,0.00021144,57096.0,57095.0,1.005532]
[1725544714331,0.00021144,57096.0,57095.0,1.355825]
[1725544714577,0.00021144,57096.0,57095.0,1.518125]
[1725544714795,0.00021144,57096.0,57095.0,1.868418]
[1725544715662,0.00021144,57096.0,57095.0,1.518125]
[1725544716529,0.00021144,57096.0,57095.0,1.167832]
[1725544716967,0.00021144,57096.0,57095.0,0.817539]
[1725544717399,0.00021144,57096.0,57095.0,0.831539]
[1725544717620,0.00021144,57096.0,57095.0,1.49034205]
[1725544717830,0.00021144,57096.0,57095.0,1.181832]
[1725544718286,0.00021144,57096.0,57095.0,1.49034205]
[1725544718509,0.00021144,57096.0,57095.0,1.84063505]
[1725544718943,0.00021144,57096.0,57095.0,1.181832]
[1725544720054,0.00021144,57096.0,57095.0,1.1815671]
[1725544722714,0.00021144,57096.0,57095.0,0.539439]
[1725544723817,0.00021144,57096.0,57095.0,0.014]
[1725544724042,0.87592844,57096.0,57095.0,0.014]
[1725544724260,0.00021144,57096.0,57095.0,0.014]
[1725544724488,0.00021144,57096.0,57095.0,0.189146]
[1725544724966,0.00021144,57096.0,57095.0,0.014]
[1725544725785,0.00021144,57096.0,57095.0,0.175146]
[1725544726003,0.00021144,57096.0,57095.0,1.050432]
[1725544726213,0.00021144,57096.0,57095.0,1.414725]
[1725544726382,0.00021144,57096.0,57095.0,1.66133025]
[1725544726596,0.00021144,57096.0,57095.0,1.79323025]
[1725544729319,0.00102644,57096.0,57095.0,1.79323025]
[1725544729978,0.00102644,57096.0,57095.0,1.79296535]
[1725544730223,0.00102644,57096.0,57095.0,1.5463601]
[1725544730853,0.00102644,57096.0,57095.0,0.8894671]
[1725544736420,0.00102644,57096.0,57095.0,1.2397601]
[1725544737812,0.00102644,57096.0,57095.0,1.7508531]
[1725544738080,0.00102644,57096.0,57095.0,1.8875531]
[1725544738999,0.00102644,57096.0,57095.0,2.3478461]
[1725544739226,0.00102644,57096.0,57095.0,2.3498461]
[1725544740111,0.00102644,57096.0,57095.0,2.3355812]
[1725544740323,0.00102644,57096.0,57095.0,1.9832882]
[1725544740553,0.00102644,57096.0,57095.0,1.9972882]
[1725544740978,0.00102644,57096.0,57095.0,1.9832882]
[1725544741444,0.00102644,57096.0,57095.0,1.9972882]
[1725544741949,0.00102644,57096.0,57095.0,1.9992882]
[1725544742172,0.00102644,57096.0,57095.0,1.9972882]
[1725544742389,0.00102644,57096.0,57095.0,2.3492092]
[1725544742593,0.00102644,57096.0,57095.0,1.9989162]
[1725544743676,0.00102644,57096.0,57095.0,2.3492092]
[1725544743888,0.00102644,57096.0,57095.0,1.9869162]
[1725544745152,4.4e-07,57096.0,57095.0,1.9869162]
[1725544745366,0.02619863,57118.0,57105.0,0.3136]
[1725544745367,0.3002,57117.0,57105.0,0.3136]
[1725544745601,0.00081,57119.0,57115.0,0.35017]
[1725544745802,0.00081,57119.0,57118.0,0.525228]
[1725544746021,0.00081,57119.0,57118.0,0.87538]
[1725544746223,0.00081,57119.0,57118.0,1.225532]
[1725544746437,0.00081,57119.0,57118.0,0.87538]
[1725544748382,0.00081,57119.0,57118.0,0.525228]
[1725544748806,0.00081,57119.0,57118.0,0.531228]
[1725544749255,0.00081,57119.0,57118.0,0.88138]
[1725544749471,0.00081,57119.0,57118.0,1.555432]
[1725544749688,0.00081,57119.0,57118.0,1.905584]
[1725544750111,0.00081,57119.0,57118.0,1.9053191]
[1725544750338,0.00081,57119.0,57118.0,1.2312671]
[1725544750586,0.00081,57119.0,57118.0,1.5261671]
[1725544750824,0.00081,57119.0,57118.0,0.525228]
[1725544751052,0.00081,57119.0,57118.0,1.232532]
[1725544751473,0.00081,57119.0,57118.0,1.225532]
[1725544751899,0.00081,57119.0,57118.0,1.239532]
[1725544752119,0.00081,57119.0,57118.0,1.402832]
[1725544752330,0.00081,57119.0,57118.0,1.388832]
[1725544752537,0.00081,57119.0,57118.0,0.87538]
[1725544753203,0.00081,57119.0,57118.0,1.12198525]
[1725544753408,0.00081,57119.0,57118.0,1.47213725]
[1725544753832,0.00081,57119.0,57118.0,1.48613725]
[1725544754047,0.00081,57119.0,57118.0,2.13908925]
[1725544754494,0.00081,57119.0,57118.0,1.77493725]
[1725544754944,0.00081,57119.0,57118.0,1.78893725]
[1725544755166,0.00081,57119.0,57118.0,2.13908925]
[1725544755381,0.00081,57119.0,57118.0,2.13508925]
[1725544755798,0.00081,57119.0,57118.0,2.14908925]
[1725544757121,0.00081,57119.0,57118.0,2.13508925]
[1725544757362,0.00081,57119.0,57118.0,2.14908925]
[1725544757987,0.00081,57119.0,57118.0,2.62954609]
[1725544758205,0.00081,57119.0,57118.0,2.59924125]
[1725544758451,0.00081,57119.0,57118.0,2.24908925]
[1725544758894,0.00081,57119.0,57118.0,2.23508925]
[1725544759103,0.00081,57119.0,57118.0,2.24908925]
[1725544759319,0.00081,57119.0,57118.0,2.59924125]
[1725544760037,0.00081,57119.0,57118.0,2.59897635]
[1725544760669,0.00081,57119.0,57118.0,2.58497635]
[1725544761117,0.00081,57119.0,57118.0,2.59897635]
[1725544761995,0.00081,57119.0,57118.0,2.58497635]
[1725544761996,1e-06,57119.0,57118.0,2.58497635]
[1725544762216,1e-06,57119.0,57118.0,2.62197635]
[1725544763070,1e-06,57119.0,57118.0,2.59897635]
[1725544763958,0.00081,57127.0,57118.0,2.59897635]
[1725544763959,0.45181207,57145.0,57122.0,0.01]
[1725544764175,0.70150115,57144.0,57141.0,0.175004]
[1725544764392,0.45181207,57145.0,57139.0,0.350022]
[1725544764606,0.45181207,57145.0,57140.0,0.175008]
[1725544764827,0.10182207,57145.0,57141.0,0.175002]
[1725544765035,0.27681707,57145.0,57141.0,0.175002]
[1725544765517,0.10182207,57145.0,57143.0,0.174997]
[1725544765743,0.27681507,57145.0,57142.0,0.175001]
[1725544766167,0.10182207,57145.0,57141.0,0.182005]
[1725544766405,0.27681507,57145.0,57142.0,0.175002]
[1725544766643,0.27681507,57145.0,57141.0,0.182005]
[1725544766858,0.10182207,57145.0,57144.0,0.524989]
[1725544767075,0.10182207,57145.0,57141.0,0.007]
[1725544767076,0.1356,57149.0,57141.0,0.24660525]
[1725544767294,0.1356,57149.0,57148.0,0.174984]
[1725544767516,0.1356,57149.0,57148.0,0.524952]
[1725544767776,0.16086535,57149.0,57148.0,0.524952]
[1725544768690,0.16086535,57149.0,57148.0,0.174984]
[1725544768918,0.16086535,57149.0,57148.0,0.005]
[1725544769404,1.2823756,57149.0,57148.0,0.005]
[1725544769638,0.525145,57127.0,57126.0,0.52650515]
[1725544769866,0.340548,57127.0,57126.0,0.52650515]
[1725544770096,0.34055,57127.0,57123.0,0.1747941]
[1725544770331,0.24660525,57132.0,57115.0,0.492168]
[1725544770332,0.1672,57134.0,57118.0,0.24823325]
[1725544770568,0.1672,57134.0,57122.0,0.350125]
[1725544770569,0.350075,57131.0,57122.0,0.350125]
[1725544770787,0.15222732,57142.0,57122.0,0.350125]
[1725544770788,0.1378,57139.0,57129.0,0.350082]
[1725544771015,0.1378,57139.0,57134.0,0.175025]
[1725544771016,0.312813,57139.0,57134.0,0.175025]
[1725544771239,0.312813,57139.0,57122.0,0.350125]
[1725544771240,0.175027,57134.0,57122.0,0.350125]
[1725544771458,0.175024,57135.0,57132.0,0.175032]
[1725544771690,0.35004,57137.0,57131.0,0.175034]
[1725544771923,0.24660525,57135.0,57122.0,0.01]
[1725544772135,0.305757,57125.0,57122.0,0.01]
[1725544772355,0.1307,57125.0,57122.0,0.175062]
[1725544772570,0.1307,57125.0,57115.0,0.350166]
[1725544772795,0.175057,57124.0,57120.0,0.175068]
[1725544773066,0.35009,57129.0,57119.0,0.350143]
[1725544773317,0.35009,57129.0,57112.0,0.350187]
[1725544773318,0.350087,57129.0,57122.0,0.350127]
[1725544773542,0.175049,57127.0,57123.0,0.175059]
[1725544773774,0.350064,57133.0,57127.0,0.175047]
[1725544774029,0.350075,57131.0,57126.0,0.17505]
[1725544774345,0.175043,57129.0,57125.0,0.175054]
[1725544774534,0.175043,57129.0,57124.0,0.350114]
[1725544774535,0.02506011,57135.0,57134.0,0.700108]
[1725544774774,0.02506011,57135.0,57124.0,0.1377]
[1725544774775,0.07727973,57145.0,57133.0,0.1747]
[1725544775008,0.17501,57140.0,57136.0,0.175019]
[1725544775234,0.175019,57137.0,57133.0,0.1747]
[1725544775460,0.175003,57142.0,57133.0,0.1747]
[1725544775687,0.350005,57142.0,57135.0,0.175023]
[1725544775917,0.24660525,57146.0,57134.0,0.180026]
[1725544775918,0.118401,57141.0,57134.0,0.180026]
[1725544776153,0.175019,57137.0,57134.0,0.005]
[1725544776418,0.478687,57145.0,57134.0,0.005]
[1725544776419,0.87512,57135.0,57134.0,0.005]
[1725544776667,1.560814,57135.0,57134.0,0.005]
[1725544776919,1.910862,57135.0,57134.0,0.005]
[1725544777165,1.910862,57135.0,57121.0,0.1726]
[1725544777166,0.175056,57125.0,57121.0,0.1726]
[1725544777408,0.24660525,57137.0,57122.0,0.350126]
[1725544777645,0.17505,57127.0,57126.0,0.001628]
[1725544777887,0.175046,57128.0,57126.0,0.001628]
[1725544778135,0.175048,57127.0,57126.0,0.001628]
[1725544778360,0.525145,57127.0,57126.0,0.001628]
[1725544778595,2.32288367,57127.0,57126.0,0.001628]
[1725544778840,1.841411,57119.0,57118.0,0.001628]
[1725544779066,4.77236393,57119.0,57118.0,0.001628]
[1725544779312,4.79536393,57119.0,57118.0,0.001628]
[1725544779768,4.79536393,57119.0,57092.0,0.52650515]
[1725544779769,0.175141,57097.0,57092.0,0.52650515]
[1725544779984,0.0859,57103.0,57092.0,0.52650515]
[1725544779985,0.24660525,57101.0,57092.0,0.52650515]
[1725544780237,0.52543,57096.0,57090.0,0.1787]
[1725544780707,0.875717,57096.0,57090.0,0.1787]
[1725544780945,1.316027,57096.0,57085.0,0.357776]
[1725544781162,1.180147,57096.0,57086.0,0.175173]
[1725544781387,1.180147,57096.0,57085.0,0.1826]
[1725544781610,1.180147,57096.0,57081.0,0.1705]
[1725544781824,1.180147,57096.0,57084.0,0.175179]
[1725544781825,1.266047,57096.0,57084.0,0.175179]
[1725544782053,1.266047,57096.0,57081.0,0.1705]
[1725544782054,1.57442952,57096.0,57081.0,0.1705]
[1725544782266,1.92571652,57096.0,57095.0,0.008628]
[1725544782481,1.57542952,57096.0,57095.0,0.008628]
[1725544782687,1.48952952,57096.0,57095.0,0.008628]
[1725544782911,0.52543,57096.0,57095.0,0.001628]
[1725544783126,0.05231114,57105.0,57095.0,0.001628]
[1725544783381,0.1,57106.0,57095.0,0.001628]
[1725544783382,0.350246,57103.0,57095.0,0.001628]
[1725544783624,0.175132,57100.0,57095.0,0.176773]
[1725544783868,0.350246,57103.0,57095.0,0.001628]
[1725544784104,0.350246,57103.0,57095.0,0.176774]
[1725544784329,0.27482656,57101.0,57095.0,0.001628]
[1725544784562,0.009,57096.0,57095.0,0.002628]
[1725544784998,0.350206,57110.0,57102.0,0.175123]
[1725544785228,0.17512,57104.0,57099.0,0.175133]
[1725544785443,0.175126,57102.0,57097.0,0.175137]
[1725544785915,0.350226,57106.0,57097.0,0.350278]
[1725544785916,0.006,57103.0,57097.0,0.350278]
[1725544786132,0.006,57103.0,57095.0,0.181328]
[1725544786133,0.181124,57103.0,57098.0,0.175136]
[1725544786351,0.450214,57108.0,57100.0,0.175129]
[1725544786352,0.175117,57105.0,57100.0,0.175129]
[1725544786569,0.01,57115.0,57095.0,0.181328]
[1725544786570,0.02575916,57116.0,57101.0,0.350253]
[1725544786791,0.64422228,57122.0,57099.0,0.3105]
[1725544786792,0.175108,57108.0,57099.0,0.3105]
[1725544787008,0.175108,57108.0,57102.0,0.52537]
[1725544787270,0.175106,57108.0,57103.0,0.175121]
[1725544787954,0.175106,57108.0,57103.0,0.174121]
[1725544788187,0.175111,57107.0,57101.0,0.350253]
[1725544788426,0.525317,57109.0,57103.0,0.17512]
[1725544788661,0.175114,57106.0,57103.0,0.003]
[1725544788920,0.350211,57109.0,57103.0,0.003]
[1725544788921,0.175105,57109.0,57104.0,0.175117]
[1725544789381,0.175108,57108.0,57104.0,0.175117]
[1725544789599,0.525304,57110.0,57104.0,0.175117]
[1725544789831,0.175106,57108.0,57103.0,0.175119]
[1725544790060,0.175106,57108.0,57104.0,0.175118]
[1725544790734,0.05221043,57121.0,57101.0,0.52650515]
[1725544790973,0.13052609,57129.0,57101.0,0.52650515]
[1725544790974,0.0396,57126.0,57109.0,0.30838252]
[1725544791213,0.07831565,57131.0,57112.0,0.350187]
[1725544791214,0.0396,57131.0,57112.0,0.350187]
[1725544791448,0.175112,57106.0,57105.0,0.1781]
[1725544791679,0.0396,57115.0,57103.0,0.002]
[1725544791680,0.350196,57111.0,57103.0,0.002]
[1725544791898,0.0396,57115.0,57102.0,0.52813315]
[1725544791899,0.17511,57107.0,57102.0,0.001628]
[1725544792123,0.350196,57111.0,57105.0,0.311]
[1725544792343,0.175104,57109.0,57105.0,0.486114]
[1725544792580,0.30838252,57121.0,57105.0,0.486114]
[1725544792581,0.07829422,57162.0,57132.0,0.905165]
[1725544792797,0.1417,57150.0,57134.0,0.30838252]
[1725544793022,0.1417,57150.0,57138.0,0.350023]
[1725544793268,0.1417,57157.0,57151.0,0.524925]
[1725544793507,0.1417,57157.0,57151.0,0.174975]
[1725544794421,0.1417,57157.0,57148.0,0.349964]
[1725544794653,0.1417,57157.0,57150.0,0.174976]
[1725544794929,0.01644761,57151.0,57150.0,0.174976]
[1725544795408,0.01644761,57151.0,57150.0,0.874888]
[1725544795620,0.1363,57163.0,57151.0,0.874875]
[1725544795831,0.1363,57163.0,57151.0,0.174975]
[1725544796336,0.1363,57163.0,57151.0,0.524925]
[1725544796552,0.1363,57163.0,57151.0,0.174975]
[1725544797027,0.1363,57163.0,57151.0,0.524925]
[1725544797476,0.1363,57163.0,57151.0,0.174975]
[1725544797477,0.1,57162.0,57151.0,0.174975]
[1725544797724,0.1,57162.0,57151.0,0.524925]
[1725544798691,0.1,57162.0,57151.0,0.538925]
[1725544798953,0.00081,57165.0,57151.0,1.054875]
[1725544799422,0.00081,57165.0,57151.0,1.404825]
[1725544799666,0.00081,57165.0,57151.0,1.414825]
[1725544799901,0.00081,57165.0,57151.0,1.764775]
[1725544800166,0.00081,57165.0,57151.0,1.4145601]
[1725544800396,0.00081,57177.0,57169.0,0.03]
[1725544800657,4.8e-05,57182.0,57181.0,1.234181]
[1725544800920,4.8e-05,57182.0,57181.0,2.14932952]
[1725544801459,4.8e-05,57182.0,57181.0,2.17932952]
[1725544801712,0.00081,57195.0,57194.0,0.84173]
[1725544801956,0.00081,57195.0,57194.0,2.28917352]
[1725544802239,0.00081,57195.0,57194.0,2.29917352]
[1725544803170,0.00081,57195.0,57194.0,2.31317352]
[1725544803395,0.00081,57195.0,57194.0,1.95348652]
[1725544803622,0.00081,57195.0,57194.0,0.1666]
[1725544803877,0.00081,57195.0,57188.0,0.1719]
[1725544804111,0.00081,57195.0,57194.0,0.014]
[1725544804353,0.00081,57195.0,57194.0,0.53853]
[1725544804584,0.00081,57195.0,57194.0,0.188843]
[1725544804808,0.00081,57195.0,57194.0,1.60541906]
[1725544805032,0.00081,57195.0,57194.0,1.225917]
[1725544805264,0.00081,57195.0,57194.0,1.575604]
[1725544805489,0.00081,57195.0,57194.0,1.561604]
[1725544805711,0.00081,57195.0,57194.0,1.411104]
[1725544805928,0.00081,57195.0,57194.0,1.425104]
[1725544806404,0.00081,57195.0,57194.0,1.411104]
[1725544806647,0.00081,57195.0,57194.0,1.425104]
[1725544807083,0.00081,57195.0,57194.0,1.784791]
[1725544807303,0.00081,57209.0,57194.0,1.784791]
[1725544807304,0.00081,57209.0,57208.0,1.573204]
[1725544807529,0.00081,57209.0,57208.0,2.06268652]
[1725544807756,0.01990858,57262.0,57244.0,1.222833]
[1725544807988,0.3035288,57283.0,57244.0,1.222833]
[1725544807989,0.01666632,57289.0,57287.0,0.02]
[1725544808227,0.16616406,57302.0,57287.0,10.46442286]
[1725544808228,0.0114171,57302.0,57287.0,10.46442286]
[1725544808456,0.60316464,57356.0,57312.0,0.892417]
[1725544808457,0.069962,57355.0,57312.0,0.892417]
[1725544808691,0.069962,57355.0,57312.0,1.764751]
[1725544808946,0.1802,57357.0,57333.0,0.01]
[1725544808947,0.348728,57352.0,57333.0,0.01]
[1725544809187,0.14223,57369.0,57312.0,0.2954]
[1725544809188,0.01,57339.0,57314.0,0.01]
[1725544809416,0.1802,57334.0,57322.0,0.01]
[1725544809877,0.1439,57343.0,57324.0,0.02]
[1725544809878,0.1539,57343.0,57324.0,0.02]
[1725544810112,0.0939,57343.0,57336.0,0.0197361]
[1725544810377,0.0939,57343.0,57323.0,0.002]
[1725544810378,0.00021051,57348.0,57344.0,0.0092072]
[1725544810621,0.00021051,57348.0,57344.0,0.0192072]
[1725544810858,0.00021051,57348.0,57344.0,0.0092072]
[1725544811094,0.00021051,57348.0,57334.0,0.0192072]
[1725544811329,0.00021051,57348.0,57320.0,0.71310515]
[1725544811330,0.00021051,57348.0,57344.0,0.0092072]
[1725544811640,0.00021051,57348.0,57344.0,1.07136365]
[1725544811857,0.00021051,57348.0,57344.0,1.3331372]
[1725544812081,0.00021051,57348.0,57347.0,0.5693382]
[1725544812303,0.3141,57374.0,57359.0,0.1985472]
[1725544812529,0.1736,57397.0,57359.0,1.74402079]
[1725544812765,0.00021032,57399.0,57368.0,0.9177722]
[1725544813006,0.00021032,57399.0,57368.0,0.6471462]
[1725544813007,0.02895686,57391.0,57368.0,0.6471462]
[1725544813229,0.02895686,57392.0,57368.0,0.5471462]
[1725544813453,0.00021032,57399.0,57368.0,1.56569831]
[1725544813682,0.00021032,57399.0,57368.0,1.91632431]
[1725544813905,0.00021032,57399.0,57377.0,0.9176342]
[1725544814168,0.35141515,57417.0,57377.0,0.9176342]
[1725544814169,0.5,57444.0,57398.0,0.0242072]
[1725544814399,0.1744,57476.0,57398.0,0.0242072]
[1725544814400,0.35141515,57463.0,57431.0,0.5465712]
[1725544814627,0.35141515,57444.0,57431.0,0.0042072]
[1725544814849,0.35141515,57444.0,57396.0,0.2635]
[1725544814850,0.01,57434.0,57417.0,0.0042072]
[1725544815074,0.01,57434.0,57389.0,0.52650515]
[1725544815075,0.348361,57412.0,57393.0,0.0142072]
[1725544815298,0.348361,57412.0,57389.0,0.52650515]
[1725544815299,0.52603017,57411.0,57410.0,0.52650515]
[1725544815545,0.51,57414.0,57393.0,0.0042072]
[1725544815766,0.1385,57418.0,57401.0,0.0042072]
[1725544815767,0.00348317,57413.0,57401.0,0.0042072]
[1725544815984,0.35141515,57412.0,57401.0,0.0042072]
[1725544816216,0.348328,57417.0,57406.0,0.0142072]
[1725544816444,0.1385,57418.0,57384.0,0.52650515]
[1725544816445,0.35141515,57410.0,57404.0,0.0042072]
[1725544816671,0.00348317,57409.0,57396.0,0.0042072]
[1725544816911,0.35141515,57410.0,57385.0,0.54071235]
[1725544816912,0.1745,57397.0,57385.0,0.54071235]
[1725544817133,0.1745,57397.0,57385.0,0.52650515]
[1725544817134,0.35141515,57390.0,57385.0,0.52650515]
[1725544817355,0.1745,57397.0,57386.0,0.0142072]
[1725544817356,0.35141515,57391.0,57386.0,0.0142072]
[1725544817585,0.35141515,57391.0,57383.0,0.0042072]
[1725544817829,0.348547,57382.0,57370.0,0.0042072]
[1725544818094,0.348547,57382.0,57347.0,0.01]
[1725544818095,0.35141515,57371.0,57353.0,0.52650515]
[1725544818321,0.30768317,57381.0,57353.0,0.52650515]
[1725544818322,0.00348317,57370.0,57361.0,0.0142072]
[1725544818550,0.2812,57381.0,57333.0,0.1733]
[1725544818551,0.35141515,57377.0,57366.0,0.0142072]
[1725544818768,0.35206517,57376.0,57366.0,0.0142072]
[1725544818997,0.35206517,57376.0,57359.0,0.0142072]
[1725544818998,0.35141515,57369.0,57359.0,0.0142072]
[1725544819296,0.00348317,57368.0,57361.0,0.0042072]
[1725544819525,0.1812,57381.0,57372.0,0.0042072]
[1725544819749,0.1812,57381.0,57352.0,0.002]
[1725544819750,0.01446672,57380.0,57365.0,0.0142072]
[1725544819966,0.174343,57358.0,57357.0,0.0142072]
[1725544820198,0.174343,57358.0,57339.0,0.01]
[1725544820199,0.35141515,57362.0,57346.0,0.0139422]
[1725544820419,0.5,57369.0,57352.0,0.52650515]
[1725544820420,0.35141515,57355.0,57352.0,0.52650515]
[1725544820647,0.00348317,57361.0,57339.0,0.0139422]
[1725544820648,0.00348317,57354.0,57339.0,0.0139422]
[1725544820859,0.00348317,57354.0,57341.0,0.52650515]
[1725544820860,0.348732,57351.0,57341.0,0.52650515]
[1725544821085,0.35141515,57342.0,57331.0,0.0039422]
[1725544821301,0.1839,57352.0,57323.0,0.0039422]
[1725544821302,0.348844,57333.0,57323.0,0.0039422]
[1725544821540,0.174453,57322.0,57321.0,0.52650515]
[1725544821790,0.00183497,57322.0,57315.0,0.0139422]
[1725544822033,0.00183497,57322.0,57302.0,0.1808]
[1725544822034,0.35141515,57317.0,57302.0,0.0039422]
[1725544822256,0.35141515,57317.0,57283.0,0.349142]
[1725544822257,0.1481,57306.0,57288.0,0.0089422]
[1725544822486,0.349112,57289.0,57280.0,0.0089422]
[1725544822736,0.349112,57289.0,57278.0,0.52650515]
[1725544822737,0.00157113,57305.0,57292.0,0.0039422]
[1725544822974,0.0060578,57314.0,57295.0,0.0089422]
[1725544822975,0.01233469,57304.0,57295.0,0.0089422]
[1725544823200,0.00348317,57303.0,57300.0,0.0089422]
[1725544823425,0.25,57317.0,57310.0,0.0089422]
[1725544823653,0.25,57317.0,57296.0,0.0034896]
[1725544823654,0.0050578,57306.0,57296.0,0.0034896]
[1725544823884,0.0050578,57306.0,57305.0,0.174504]
[1725544824105,0.0050578,57306.0,57292.0,0.18]
[1725544824354,0.0050578,57306.0,57305.0,0.525513]
[1725544824584,0.25,57317.0,57290.0,0.002]
[1725544824585,0.174515,57302.0,57290.0,0.002]
[1725544824808,0.1361,57298.0,57277.0,0.181]
[1725544825045,0.1361,57298.0,57278.0,0.52999627]
[1725544825046,0.00348317,57297.0,57278.0,0.52999627]
[1725544825262,0.00348317,57297.0,57288.0,0.002]
[1725544825496,0.1435,57307.0,57289.0,0.00349097]
[1725544825949,0.1435,57307.0,57292.0,0.002]
[1725544825950,0.52650515,57305.0,57292.0,0.002]
[1725544826170,0.00519251,57306.0,57292.0,0.002]
[1725544826171,0.00348317,57304.0,57292.0,0.002]
[1725544826413,0.001,57303.0,57300.0,0.009]
[1725544826637,0.001,57303.0,57302.0,0.174513]
[1725544826893,0.177,57340.0,57301.0,0.32118959]
[1725544826894,0.00348317,57316.0,57301.0,0.1794]
[1725544827142,0.487907,57322.0,57307.0,0.002]
[1725544827143,0.25348317,57317.0,57307.0,0.002]
[1725544827396,0.25348317,57317.0,57304.0,0.174507]
[1725544827397,0.007,57305.0,57304.0,0.174507]
[1725544827677,0.007,57305.0,57304.0,0.635522]
[1725544827915,0.25,57317.0,57316.0,1.251297]
[1725544828210,0.25,57317.0,57316.0,1.65247015]
[1725544828448,0.25,57317.0,57316.0,1.65447015]
[1725544828902,0.2472,57317.0,57316.0,2.20892311]
[1725544829599,0.0966,57317.0,57316.0,2.36235415]
[1725544829831,0.0966,57317.0,57316.0,0.954113]
[1725544830063,0.0966,57317.0,57306.0,0.1739]
[1725544830301,0.0966,57317.0,57316.0,0.87409]
[1725544830532,0.0966,57317.0,57316.0,1.231032]
[1725544830796,0.0966,57317.0,57316.0,1.77748496]
[1725544831035,0.01,57380.0,57316.0,1.77748496]
[1725544831036,0.00348317,57349.0,57328.0,0.348868]
[1725544831533,0.00348317,57349.0,57327.0,0.012]
[1725544831534,0.1436,57366.0,57346.0,0.348757]
[1725544831538,0.01,57392.0,57349.0,0.01]
[1725544831762,0.35141515,57398.0,57363.0,0.174327]
[1725544831763,0.1436,57378.0,57363.0,0.174327]
[1725544831975,0.02,57394.0,57347.0,0.1]
[1725544831976,0.00348317,57377.0,57361.0,0.1442]
[1725544832200,0.01,57387.0,57362.0,0.002]
[1725544832442,0.01,57387.0,57350.0,0.11]
[1725544832443,0.00348317,57386.0,57350.0,0.11]
[1725544832676,0.348604,57372.0,57353.0,0.52650515]
[1725544832899,0.141,57357.0,57340.0,0.002]
[1725544833142,0.141,57357.0,57336.0,0.52650515]
[1725544833143,0.35141515,57355.0,57337.0,0.174405]
[1725544833405,0.35141515,57355.0,57336.0,0.52565165]
[1725544833406,0.348754,57347.0,57336.0,0.52565165]
[1725544833628,0.00348317,57354.0,57321.0,0.67220515]
[1725544833629,0.00348317,57346.0,57321.0,0.68220515]
[1725544833853,0.1818,57356.0,57343.0,0.174387]
[1725544833854,0.00348317,57355.0,57343.0,0.174387]
[1725544834063,0.00348317,57355.0,57326.0,0.35141515]
[1725544834064,0.18528317,57356.0,57339.0,0.35141515]
[1725544834286,0.174355,57354.0,57353.0,0.005]
[1725544834508,0.01,57369.0,57353.0,0.005]
[1725544834509,0.174344,57358.0,57353.0,0.005]
[1725544834739,0.174344,57358.0,57334.0,0.1]
[1725544834740,0.00348317,57366.0,57342.0,0.5299924]
[1725544834963,0.1818,57367.0,57337.0,0.35141515]
[1725544834964,0.18528317,57367.0,57354.0,0.348705]
[1725544835188,0.18528317,57367.0,57346.0,0.002]
[1725544835402,0.00348317,57366.0,57342.0,0.002]
[1725544835631,0.00348317,57366.0,57334.0,0.1]
[1725544835632,0.348662,57363.0,57326.0,0.1832]
[1725544835876,0.348662,57363.0,57323.0,0.35141515]
[1725544835877,0.348803,57339.0,57332.0,0.52650515]
[1725544836120,0.35141515,57351.0,57320.0,0.002]
[1725544836121,0.00348317,57338.0,57320.0,0.002]
[1725544836362,0.00348317,57338.0,57315.0,0.3221]
[1725544836363,0.1379,57353.0,57336.0,0.35341515]
[1725544836590,0.1379,57353.0,57337.0,0.00348774]
[1725544836810,0.1379,57353.0,57326.0,0.01]
[1725544836811,0.00348317,57359.0,57347.0,0.348749]
[1725544837035,0.00348317,57359.0,57346.0,0.002]
[1725544837261,0.1768,57360.0,57341.0,0.348789]
[1725544837262,0.00348317,57358.0,57341.0,0.348789]
[1725544837494,0.00348317,57358.0,57326.0,0.01]
[1725544837495,0.00348317,57358.0,57325.0,0.01]
[1725544837708,0.35141515,57349.0,57334.0,0.002]
[1725544837924,0.03802832,57358.0,57334.0,0.002]
[1725544837925,0.1487,57359.0,57334.0,0.35341515]
[1725544838154,0.00348317,57358.0,57334.0,0.002]
[1725544838374,0.34876,57347.0,57334.0,0.002]
[1725544838623,0.00348317,57346.0,57334.0,0.002]
[1725544838809,0.00348317,57356.0,57334.0,0.002]
[1725544839022,0.174374,57348.0,57341.0,0.174393]
[1725544839248,0.1,57358.0,57334.0,0.00548794]
[1725544839249,0.1487,57359.0,57342.0,0.52650515]
[1725544839472,0.1487,57359.0,57334.0,0.00548792]
[1725544839473,0.1487,57359.0,57343.0,0.00348701]
[1725544839741,0.15218317,57359.0,57346.0,0.003]
[1725544840232,0.15218317,57359.0,57346.0,0.00348749]
[1725544840233,0.1487,57359.0,57346.0,0.00348749]
[1725544840459,0.1487,57359.0,57335.0,0.002]
[1725544840460,0.1487,57359.0,57354.0,0.348711]
[1725544840689,0.1487,57359.0,57333.0,0.52650515]
[1725544840690,0.348712,57354.0,57342.0,0.001]
[1725544840910,0.00348317,57353.0,57342.0,0.001]
[1725544841133,0.00348317,57353.0,57337.0,0.348809]